[Event "40th Cappelle Open 2024"]
[Site "Cappelle-la-Grande"]
[Date "2024.03.03"]
[Round "2.3"]
[White "Dalaud, Dorian"]
[Black "Sasikiran, Krishnan"]
[Result "0-1"]
[ECO "C84"]
[WhiteElo "2319"]
[BlackElo "2578"]
[Annotator "TA"]
[PlyCount "114"]
[EventDate "2024.03.02"]
[EventType "swiss"]
[EventCountry "FRA"]
[SourceTitle "playchess.com"]
[Source "ChessBase"]
[SourceQuality "1"]
[TimeControl "40/5400+30:1800+30"]

{[%evp 37,113,20,34,40,46,13,20,0,10,-18,0,0,14,0,0,0,0,-65,-60,-95,-55,-66,-74,-70,-77,-82,-6,0,0,0,37,36,45,10,23,29,32,0,0,-83,-83,-495,-220,-231,-233,-233,-231,-248,-243,-240,-240,-227,-217,-302,-312,-439,-437,-396,-395,-499,-489,-5210,0,0,0,-29964,-29967,-29967,-29969,-29966,-29958,-29963,-29958,-29987,-29982,-29997,-29998,-29999]} 1. e4 {[%emt 0:00:25]} e5 {[%emt 0:00:48]} 2. Nf3 {[%emt 0:00:10]} Nc6 {[%emt 0:00:08]} 3. Bb5 {[%emt 0:00:16]} a6 {[%emt 0:00:31]} 4. Ba4 {[%emt 0:00:25]} Nf6 {[%emt 0:00:43]} 5. O-O {[%emt 0:01:19]} Be7 {[%emt 0:02:21]} 6. d3 {[%emt 0:00:53]} b5 {[%emt 0:00:56]} 7. Bb3 {[%emt 0:00:07]} d6 {[%emt 0:00:34]} 8. a4 {[%emt 0:01:59]} b4 {[%emt 0:03:37]} 9. a5 {[%emt 0:04:01]} O-O {[%emt 0:00:48]} 10. Nbd2 {[%emt 0:00:45]} Rb8 {[%emt 0:06:21] C84: Closed Ruy Lopez: Unusual White 6th moves.} 11. Re1 {[%emt 0:15:48]} h6 {[%emt 0:07:03]} 12. h3 {[%emt 0:03:18]} Re8 {[%emt 0:06:23]} 13. Nc4 {[%emt 0:02:21]} Be6 {[%emt 0:02:46]} 14. c3 {[%emt 0:04:31]} bxc3 {[%emt 0:06:37]} 15. bxc3 {[%emt 0:03:27]} Bf8 {[%emt 0:04:12]} 16. Ba4 {[%emt 0:28:00]} Bd7 {[%emt 0:01:34]} 17. Bc2 $146 {[%emt 0:00:07]} ({Predecessor:} 17. Be3 Qc8 18. Nfd2 d5 19. exd5 Nxd5 20. Qf3 Nxe3 21. Rxe3 Re6 22. d4 Rf6 23. Qd1 exd4 24. cxd4 Nxd4 {0-1 Golubev,M (2461)-Estrada Nieto,J (2280) Titled Tuesday intern op 15st Dec blitz 2020 (2)}) 17... g6 {[%emt 0:16:15]} 18. Bd2 {[%emt 0:05:42]} Bg7 {[%emt 0:04:12]} 19. Ne3 {[%emt 0:03:04]} Kh7 {[%emt 0:06:41]} 20. Bb3 {[%emt 0:01:16]} Rf8 {[%emt 0:05:07]} 21. Nd5 {[%emt 0:02:15]} Nxd5 {[%emt 0:07:43]} 22. exd5 {[%emt 0:01:23]} Na7 {[%emt 0:00:07]} 23. Be3 {[%emt 0:02:34]} Nc8 {[%emt 0:04:07]} 24. Bc4 {[%emt 0:01:12]} Ra8 {[%emt 0:03:29]} 25. d4 {[%emt 0:02:50]} e4 {[%emt 0:01:29]} 26. Nd2 {[%emt 0:00:06]} f5 {[%emt 0:01:30]} 27. f4 {[%emt 0:00:17]} (27. Bf4 $11) 27... Ne7 $15 {[%emt 0:01:32]} 28. Qe2 {[%emt 0:02:54]} Qc8 {[%emt 0:01:51]} 29. Rab1 {[%emt 0:09:09]} Be8 {[%emt 0:01:58]} 30. Nf1 {[%emt 0:00:19]} Bf7 {[%emt 0:02:16]} 31. Qa2 {[%emt 0:00:02]} Ng8 {[%emt 0:00:15]} (31... c6 $17) 32. Bf2 {[%emt 0:01:10]} Nf6 {[%emt 0:00:11]} 33. Bh4 {[%emt 0:01:14]} Rg8 {[%emt 0:01:14]} 34. Ne3 {[%emt 0:02:16]} Nh5 {[%emt 0:00:49]} 35. Qf2 {[%emt 0:00:28]} Bf6 {[%emt 0:00:51]} 36. Bxf6 {[%emt 0:01:09]} Nxf6 {[%emt 0:00:02]} 37. g4 {[%emt 0:01:07]} fxg4 {[%emt 0:00:50]} 38. hxg4 {[%emt 0:00:32]} (38. Qh4 $11 g5 39. fxg5 Rxg5 (39... gxh3 40. Qxh6#) 40. Rf1 gxh3+ 41. Kh2) 38... Nxg4 $17 {[%emt 0:00:44]} 39. Qh4 $2 {[%emt 0:00:33][%mdl 8192]} (39. Nxg4 $17 Qxg4+ 40. Qg2) 39... Nxe3 {[%emt 0:00:33]} (39... g5 $142 40. fxg5 (40. Qxg4 $2 gxf4 41. Rb2 Rxg4+ $19) 40... Rxg5) 40. Rxe3 $19 {[%emt 0:00:10]} g5 $1 {[%emt 0:00:17]} 41. fxg5 {[%emt 0:04:53]} Rxg5+ {[%emt 0:02:04]} 42. Rg3 {[%emt 0:00:11]} Rxg3+ $1 {[%emt 0:03:47]} 43. Qxg3 {[%emt 0:00:13] [#]} Qd7 $1 {[%emt 0:02:24]} 44. Kh2 {[%emt 0:03:39]} Rg8 {[%emt 0:05:38]} 45. Qh3 {[%emt 0:03:03] [#]} Qa4 $1 {[%emt 0:05:40]} 46. Rf1 {[%emt 0:03:09]} (46. Bb3 $142 Qxa5 47. Rf1) 46... Qc2+ $19 {[%emt 0:05:31]} 47. Kh1 {[%emt 0:00:22]} Bh5 {[%emt 0:04:47]} 48. Bxa6 {[%emt 0:03:23]} e3 {[%emt 0:00:55]} (48... Bf3+ 49. Rxf3 exf3 50. Qxf3 $19) 49. Bc8 {[%emt 0:02:39]} (49. Qf5+ $142 Qxf5 50. Rxf5) 49... Qe4+ $2 {[%emt 0:02:39]} (49... Qxc3 50. Qxh5 Qd3 51. Bf5+) (49... Bg6 $19 {( -> ...Be4+)} 50. Bg4 Be4+ (50... Qxc3 51. Bf5 $11) 51. Kg1 Bxd5 (51... Bf5 52. Rf4 Rxg4+ 53. Rxg4 Qf2+ 54. Kh1 e2 55. Rg7+ Kxg7 56. Qg2+ Qxg2+ 57. Kxg2 e1=Q 58. Kf3 Be4+ 59. Kf4 Qe2 60. Kg3 Qg2+ 61. Kh4 Bf5 62. Kh5 Qh3#)) 50. Kh2 $11 {[%emt 0:00:09]} Qc2+ $2 {[%emt 0:00:57][%mdl 8192]} (50... Qxd5 $2 {loses.} 51. Be6 $18) (50... Kh8 $11 51. Bf5 Qe8 (51... Qxd5 $2 {is the wrong capture.} 52. Be6 $18)) 51. Kh1 {[%emt 0:00:08]} Bg6 {[%emt 0:00:28]} ({And not} 51... Qxc3 52. Qxh5 Qd3 53. Bf5+) 52. Rf7+ {[%emt 0:06:57]} Rg7 $1 {[%emt 0:00:09]} 53. Rxg7+ {[%emt 0:00:16]} Kxg7 {[%emt 0:00:04]} 54. Qd7+ {[%emt 0:03:55]} Bf7 {[%emt 0:00:44]} 55. Qg4+ {[%emt 0:03:56]} Kf8 {[%emt 0:00:22]} 56. Ba6 {[%emt 0:01:23]} Bxd5+ {[%emt 0:00:12]} 57. Kg1 {[%emt 0:00:01]} Qf2# {[%emt 0:00:07]} 0-1

[Event "40th Cappelle Open 2024"]
[Site "Cappelle-la-Grande"]
[Date "2024.03.03"]
[Round "2.4"]
[White "Karthikeyan, P.."]
[Black "Lodici, Lorenzo"]
[Result "1-0"]
[ECO "A46"]
[WhiteElo "2306"]
[BlackElo "2558"]
[Annotator "TA"]
[PlyCount "91"]
[EventDate "2024.03.02"]
[EventType "swiss"]
[EventCountry "FRA"]
[SourceTitle "playchess.com"]
[Source "ChessBase"]
[SourceQuality "1"]
[TimeControl "40/5400+30:1800+30"]

{[%evp 9,91,9,12,11,10,8,56,53,59,35,86,54,129,128,137,140,145,147,180,163,150,156,202,215,208,208,206,171,164,131,127,98,138,112,113,144,147,127,139,143,192,194,206,208,159,187,187,195,209,211,179,120,154,138,170,172,233,222,260,262,289,279,319,327,404,395,758,751,869,631,29967,29960,29962,5114,29956,29970,29972,29973,29972,29972,29972,29971,29949,6049]} 1. d4 {[%emt 0:13:48]} Nf6 {[%emt 0:01:00]} 2. Nf3 {[%emt 0:00:10]} e6 {[%emt 0:00:06]} 3. Bf4 {[%emt 0:00:12]} Be7 {[%emt 0:07:20]} 4. c4 {[%emt 0:01:02]} b6 {[%emt 0:00:13]} 5. Nc3 {[%emt 0:00:20]} Bb7 {[%emt 0:00:06]} 6. Qc2 {[%emt 0:02:46]} Bb4 {[%emt 0:09:27]} 7. e3 {[%emt 0:03:48]} c5 {[%emt 0:06:01]} (7... d6 $11) 8. dxc5 $14 {[%emt 0:02:18] White is slightly better.} bxc5 {[%emt 0:05:58]} 9. O-O-O {[%emt 0:01:32]} O-O {[%emt 0:02:54]} (9... Bxc3 $1 $14 10. Qxc3 O-O) 10. Nb5 $16 {[%emt 0:05:41]} d5 {[%emt 0:03:40]} (10... Be4 $14 11. Bd3 Bxf3 12. gxf3 Nc6) 11. Nc7 {[%emt 0:02:06] White has more active pieces. The black rooks are passive.} Nbd7 {[%emt 0:05:49][%cal Oe6e5]} 12. Nxa8 {[%emt 0:00:40]} Qxa8 {[%emt 0:00:08]} 13. Ne5 {[%emt 0:01:44]} Nb6 {[%emt 0:04:33]} 14. a3 {[%emt 0:02:43]} Ba5 {[%emt 0:02:28]} 15. f3 {[%emt 0:02:12]} dxc4 {[%emt 0:02:22]} (15... Nh5 $16) 16. Nxc4 $18 {[%emt 0:01:17]} Nxc4 {[%emt 0:00:10]} 17. Bxc4 {[%emt 0:00:10]} (17. Qxc4 Nd5 18. Qa4 (18. Qxc5 $2 Rc8 $19) 18... Bb6) 17... Nd5 {[%emt 0:00:15]} 18. Rd3 {[%emt 0:01:42]} Nxf4 {[%emt 0:08:39]} 19. exf4 {[%emt 0:00:17]} Qb8 {[%emt 0:00:05]} 20. g3 {[%emt 0:01:33][%cal Of4f5] f5! would now be deadly.} Bd8 {[%emt 0:00:04]} 21. Qb3 {[%emt 0:08:22] Strongly threatening Rd7.} Bf6 {[%emt 0:04:56] [#]} 22. f5 $1 {[%emt 0:04:01]} exf5 {[%emt 0:04:51]} 23. Re1 $1 $36 {[%emt 0:11:23][%cal Oc4f7][%mdl 2048] Bxf7+! is the strong threat. White is in control.} Qc7 {[%emt 0:05:17]} 24. Qb5 {[%emt 0:01:45]} Bd4 {[%emt 0:01:43] [#]} (24... Bc8 $16 {was necessary.}) 25. Qe8 $3 {[%emt 0:01:31][%mdl 512]} Be4 {[%emt 0:11:07]} 26. Bxf7+ {[%emt 0:01:50]} Qxf7 {[%emt 0:00:02]} 27. Qxf7+ {[%emt 0:00:09]} Rxf7 {[%emt 0:00:02]} 28. fxe4 {[%emt 0:00:13][%mdl 4096] Endgame. KRR-KRB} Re7 {[%emt 0:00:02] [#]} 29. e5 $1 {[%emt 0:02:36] Hoping for e6.} Kf7 {[%emt 0:00:00] [#]} 30. e6+ {[%emt 0:02:36]} Kf6 {[%emt 0:03:36]} 31. Rb3 {[%emt 0:06:29]} Be5 {[%emt 0:00:04]} 32. Kc2 {[%emt 0:04:28]} Kxe6 {[%emt 0:00:03]} (32... Rxe6 $142 33. Rb7 Rb6 34. Rxb6+ (34. Rxa7 Rxb2+ 35. Kd3 Bd4 $14) 34... axb6) 33. Rb8 {[%emt 0:02:25]} c4 {[%emt 0:10:56]} 34. Rc8 {[%emt 0:02:40]} Kd5 {[%emt 0:00:02]} 35. Rd1+ {[%emt 0:03:47]} Ke4 {[%emt 0:00:01]} 36. Rxc4+ {[%emt 0:00:02]} Kf3 {[%emt 0:00:05]} 37. Rc5 {[%emt 0:01:12] And now Re1 would win.} f4 $2 {[%emt 0:02:22]} (37... Kf2 38. Rd2+ (38. Rdd5 Bc7 $18) 38... Kf3 39. Rd3+ Ke2) 38. Re1 {[%emt 0:02:58]} fxg3 {[%emt 0:00:07]} 39. hxg3 {[%emt 0:00:29]} ({Stronger than} 39. Rexe5 Rxe5 40. Rxe5 gxh2 $11) 39... Bf6 {[%emt 0:00:18]} 40. Rxe7 {[%emt 0:01:01]} Bxe7 {[%emt 0:00:01] KR-KB} 41. Rc7 {[%emt 0:32:16][%csl LRa7,LRe7]} Bf6 {[%emt 0:30:01]} 42. Rxa7 {[%emt 0:02:25] White mates.} Kxg3 {[%emt 0:00:01]} 43. a4 {[%emt 0:00:00][%cal Ba3a4,Ba4a5,Ba5a6][%mdl 32]} h5 {[%emt 0:00:00][%cal Bh7h5,Bh5h4,Bh4h3][%mdl 32]} 44. a5 {[%emt 0:00:00]} h4 {[%emt 0:00:00]} 45. a6 {[%emt 0:00:00]} h3 {[%emt 0:00:00] [#]} 46. Rxg7+ $3 {[%emt 0:00:00][%mdl 512] Weighted Error Value: White=0.06 (flawless) /Black=0.44.  Mistake:       	White=1     	Black=7      Inaccurate:     	---       	Black=1      OK:         	White=16    	Black=6      Best:        	White=2     	Black=3      Strong:       	White=1     	---        Brilliant:      	White=2     	---} 1-0

[Event "40th Cappelle Open 2024"]
[Site "Cappelle-la-Grande"]
[Date "2024.03.03"]
[Round "2.5"]
[White "Can, Emre"]
[Black "Tomaszewski, Kacper"]
[Result "1-0"]
[ECO "B51"]
[WhiteElo "2551"]
[BlackElo "2310"]
[Annotator "TA"]
[PlyCount "63"]
[EventDate "2024.03.02"]
[EventType "swiss"]
[EventCountry "FRA"]
[SourceTitle "playchess.com"]
[Source "ChessBase"]
[SourceQuality "1"]
[TimeControl "40/5400+30:1800+30"]

{[%evp 9,63,25,22,25,56,45,47,41,36,39,36,37,43,22,19,6,17,17,44,43,39,39,89,106,200,177,346,361,456,479,499,523,530,512,548,549,579,579,585,565,810,758,720,566,974,968,1252,1049,1170,1202,1278,1263,1762,1616,1637,1567]} 1. e4 {[%emt 0:01:16]} c5 {[%emt 0:00:03]} 2. Nf3 {[%emt 0:00:12]} d6 {[%emt 0:00:08]} 3. Bb5+ {[%emt 0:00:46]} Nd7 {[%emt 0:00:17]} 4. a4 {[%emt 0:00:37][%cal Ba2a4,Ba4a5,Ba5a6][%mdl 32]} Qc7 {[%emt 0:00:06]} 5. O-O {[%emt 0:03:28]} Ngf6 {[%emt 0:00:09]} 6. Re1 {[%emt 0:00:46]} g6 {[%emt 0:00:25]} 7. a5 {[%emt 0:04:12]} Bg7 {[%emt 0:00:51]} 8. Nc3 {[%emt 0:01:34] White is slightly better.} O-O {[%emt 0:00:17]} 9. d3 {[%emt 0:11:36]} Ne5 {[%emt 0:01:53]} 10. Nxe5 {[%emt 0:03:00]} dxe5 {[%emt 0:00:11]} 11. a6 {[%emt 0:00:09]} b6 {[%emt 0:00:29]} 12. Bg5 {[%emt 0:07:42]} Be6 {[%emt 0:00:49]} 13. Bc4 {[%emt 0:02:24]} Bxc4 {[%emt 0:05:00]} 14. dxc4 {[%emt 0:00:14]} Rad8 {[%emt 0:00:12]} 15. Qf3 {[%emt 0:00:39]} Qc6 {[%emt 0:06:00]} (15... Rd7 $14) 16. Nb5 $36 {[%emt 0:09:33][%mdl 2048] White is really pushing. Black is now going downhill.} Rd7 {[%emt 0:02:43]} (16... Qa8 $16) 17. Red1 $18 {[%emt 0:00:49][%cal Be1d1,Bd1c1,Bc1a1][%mdl 32]} Rfd8 $2 {[%emt 0:32:52] [#]} (17... Rxd1+ 18. Qxd1 (18. Rxd1 h6 $16) 18... Ra8 19. Bxf6 Bxf6) 18. Nxa7 $1 {[%emt 0:17:32][%mdl 512]} Qa4 {[%emt 0:12:35][%cal Oa4a6]} (18... Qa8 19. Rxd7) 19. Rdc1 {[%emt 0:00:27] White is clearly winning.} (19. Rxa4 $2 {gets mated.} Rxd1+) 19... Qxa1 {[%emt 0:00:05]} 20. Rxa1 {[%emt 0:00:08]} Rxa7 {[%emt 0:00:02]} 21. Bxf6 {[%emt 0:02:56]} Bxf6 {[%emt 0:01:22]} 22. g3 {[%emt 0:00:43]} Kg7 {[%emt 0:01:10]} 23. Qb3 {[%emt 0:00:49]} Rd6 {[%emt 0:00:10]} 24. Qb5 {[%emt 0:00:16]} Kf8 {[%emt 0:00:22]} 25. b4 {[%emt 0:01:24][%cal Bb2b4,Bb4b5][%mdl 32]} Kg7 {[%emt 0:00:43]} 26. c3 {[%emt 0:00:23] And now Qe8 would win.} h5 {[%emt 0:00:16][%cal Bh7h5,Bh5h4][%mdl 32]} 27. Qe8 {[%emt 0:00:27]} h4 {[%emt 0:08:01]} 28. Qb8 {[%emt 0:00:50]} Rdd7 {[%emt 0:00:24]} 29. Qxb6 {[%emt 0:00:19]} h3 {[%emt 0:00:51]} 30. b5 {[%emt 0:00:34][%cal Ob6a7] Strongly threatening Qxa7!} Ra8 {[%emt 0:00:39]} 31. Qc6 {[%emt 0:00:20]} Rad8 {[%emt 0:00:11] [#]} 32. Qxd7 $3 {[%emt 0:00:11][%mdl 512] Weighted Error Value: White=0.14 (very precise) /Black=0.41.  Mistake:       	---       	Black=3      Inaccurate:     	---       	Black=3      OK:         	White=10    	Black=4      Best:        	White=1     	Black=2      Brilliant:      	White=1     	---} 1-0

[Event "40th Cappelle Open 2024"]
[Site "Cappelle-la-Grande"]
[Date "2024.03.03"]
[Round "2.6"]
[White "Fiedorek, Michal"]
[Black "Bellahcene, Bilel"]
[Result "1/2-1/2"]
[ECO "C64"]
[WhiteElo "2286"]
[BlackElo "2522"]
[Annotator "RC"]
[PlyCount "127"]
[EventDate "2024.03.02"]
[EventType "swiss"]
[EventCountry "FRA"]
[SourceTitle "playchess.com"]
[Source "ChessBase"]
[SourceQuality "1"]
[TimeControl "40/5400+30:1800+30"]

1. e4 {[%emt 0:00:03]} e5 {[%emt 0:02:23]} 2. Nf3 {[%emt 0:00:11]} Nc6 {[%emt 0:00:01]} 3. Bb5 {[%emt 0:00:25]} a6 {[%emt 0:00:10]} 4. Ba4 {[%emt 0:00:04]} Bc5 {[%emt 0:00:14]} 5. c3 {[%emt 0:00:59]} Nge7 {[%emt 0:08:10]} 6. O-O {[%emt 0:00:22]} Ng6 {[%emt 0:00:38]} 7. d4 {[%emt 0:00:11]} Ba7 {[%emt 0:00:01]} 8. Bg5 {[%emt 0:00:30]} f6 {[%emt 0:00:06]} 9. Be3 {[%emt 0:00:07]} O-O {[%emt 0:01:56]} 10. Nbd2 {[%emt 0:00:28]} d6 {[%emt 0:00:17]} 11. Re1 {[%emt 0:01:22]} Kh8 {[%emt 0:02:06]} 12. Bc2 {[%emt 0:01:24]} Bd7 {[%emt 0:02:44]} 13. Rc1 {[%emt 0:01:53]} b5 {[%emt 0:00:48]} 14. Bb1 {[%emt 0:04:05]} a5 {[%emt 0:02:05]} 15. Nf1 {[%emt 0:05:47]} a4 {[%emt 0:02:41]} 16. d5 {[%emt 0:13:23]} Na5 {[%emt 0:05:24]} 17. N3d2 {[%emt 0:11:02]} Qb8 {[%emt 0:03:03]} 18. b4 {[%emt 0:07:40]} axb3 {[%emt 0:03:51]} 19. axb3 {[%emt 0:00:11]} c5 {[%emt 0:07:41]} 20. dxc6 {[%emt 0:08:08]} Nxc6 {[%emt 0:00:14]} 21. b4 {[%emt 0:00:19]} Rd8 {[%emt 0:00:53]} 22. Bc2 {[%emt 0:01:54]} Nce7 {[%emt 0:02:10]} 23. Bb3 {[%emt 0:09:01]} Bc6 {[%emt 0:04:15]} 24. Qg4 {[%emt 0:05:56]} d5 {[%emt 0:01:40]} 25. exd5 {[%emt 0:03:43]} Nxd5 {[%emt 0:01:50]} 26. Ne4 {[%emt 0:00:45]} Ndf4 {[%emt 0:02:19]} 27. Bc2 {[%emt 0:02:11]} Rf8 {[%emt 0:32:32]} 28. Nfg3 {[%emt 0:08:42]} Nxg2 {[%emt 0:01:31]} 29. Kxg2 {[%emt 0:02:44]} f5 {[%emt 0:00:05]} 30. Nxf5 {[%emt 0:00:26]} Rxf5 {[%emt 0:00:09]} 31. Kg1 {[%emt 0:00:39]} Qf8 {[%emt 0:00:45]} 32. Nc5 {[%emt 0:04:10]} Rf6 {[%emt 0:00:40]} 33. Be4 {[%emt 0:04:16]} Bxc5 {[%emt 0:02:50]} 34. Bxc5 {[%emt 0:00:32]} Qf7 {[%emt 0:00:06]} 35. Bxc6 {[%emt 0:00:50]} Rxc6 {[%emt 0:00:01]} 36. Ra1 {[%emt 0:00:42]} Rg8 {[%emt 0:02:27]} 37. Ra7 {[%emt 0:00:32]} Qb3 {[%emt 0:00:01]} 38. Qe4 {[%emt 0:01:32]} Qxc3 {[%emt 0:06:05]} 39. Rea1 {[%emt 0:00:04]} Rcc8 {[%emt 0:04:00]} 40. R7a3 {[%emt 0:01:05]} Qd2 {[%emt 0:01:01]} 41. Rh3 {[%emt 0:31:19]} Qg5+ {[%emt 0:00:43]} 42. Kh1 {[%emt 0:00:00]} Qf6 {[%emt 0:02:23]} 43. Rg1 {[%emt 0:00:00]} Qc6 {[%emt 0:05:28]} 44. Qxc6 {[%emt 0:00:00]} Rxc6 {[%emt 0:00:01]} 45. Ra3 {[%emt 0:00:00]} Nf4 {[%emt 0:05:39]} 46. Ra5 {[%emt 0:00:00]} Rb8 {[%emt 0:02:01]} 47. Rd1 {[%emt 0:00:00]} h5 {[%emt 0:01:32]} 48. h4 {[%emt 0:00:00]} Rg6 {[%emt 0:03:53]} 49. Rd7 {[%emt 0:00:00]} Rg4 {[%emt 0:00:41]} 50. Be7 {[%emt 0:00:00]} Ng6 {[%emt 0:03:20]} 51. f3 {[%emt 0:06:23]} Rc4 {[%emt 0:04:31]} 52. Raa7 {[%emt 0:00:00]} Rd4 {[%emt 0:05:01]} 53. Rdc7 {[%emt 0:00:00]} Rc4 {[%emt 0:01:18]} 54. Rd7 {[%emt 0:00:00]} Nxe7 {[%emt 0:00:34]} 55. Rxe7 {[%emt 0:00:00]} Rxh4+ {[%emt 0:00:22]} 56. Kg2 {[%emt 0:00:00]} Rxb4 {[%emt 0:01:10]} 57. Rxe5 {[%emt 0:00:00]} Rb2+ {[%emt 0:00:00]} 58. Kg3 {[%emt 0:00:00]} h4+ {[%emt 0:00:11]} 59. Kxh4 {[%emt 0:00:00]} Rg2 {[%emt 0:00:47]} 60. Ra5 {[%emt 0:00:55]} Rb2 {[%emt 0:00:15]} 61. Ra7 {[%emt 0:00:53]} Rh2+ {[%emt 0:00:44]} 62. Kg3 {[%emt 0:00:21]} Rh6 {[%emt 0:00:30]} 63. Rg5 {[%emt 0:00:55]} Rg8 {[%emt 0:00:31]} 64. Rxb5 {[%emt 0:03:26]} 1/2-1/2

[Event "40th Cappelle Open 2024"]
[Site "Cappelle-la-Grande"]
[Date "2024.03.03"]
[Round "2.7"]
[White "Valsecchi, Alessio"]
[Black "Houriez, Clement"]
[Result "1-0"]
[ECO "B12"]
[WhiteElo "2490"]
[BlackElo "2272"]
[Annotator "TA"]
[PlyCount "77"]
[EventDate "2024.03.02"]
[EventType "swiss"]
[EventCountry "FRA"]
[SourceTitle "playchess.com"]
[Source "ChessBase"]
[SourceQuality "1"]
[TimeControl "40/5400+30:1800+30"]

{[%evp 9,77,22,25,21,18,14,27,20,8,11,10,11,16,-2,41,11,16,20,16,12,13,12,56,52,64,56,81,77,92,68,83,50,94,96,126,123,94,120,126,85,103,100,108,107,107,73,106,109,115,115,110,124,191,196,511,496,489,506,480,455,201,1254,1883,2897,29956,29963,29965,29960,29988,29989]} 1. e4 {[%emt 0:00:03]} c6 {[%emt 0:00:03]} 2. d4 {[%emt 0:01:30]} d5 {[%emt 0:00:07]} 3. e5 {[%emt 0:02:06]} Bf5 {[%emt 0:00:13]} 4. Nd2 {[%emt 0:01:42]} e6 {[%emt 0:01:19]} 5. Nb3 {[%emt 0:00:10]} c5 {[%emt 0:06:20]} 6. Bb5+ {[%emt 0:00:52]} Nc6 {[%emt 0:04:04]} 7. dxc5 {[%emt 0:00:21]} Bxc5 {[%emt 0:04:37][%cal Og8e7]} 8. Bxc6+ {[%emt 0:01:22] White has an edge.} (8. a4 $5 Bf8 9. a5 $14) 8... bxc6 {[%emt 0:00:01]} 9. Nxc5 {[%emt 0:00:24] Black must now prevent Nb7.} Qa5+ {[%emt 0:00:10]} 10. c3 {[%emt 0:00:21]} Qxc5 {[%emt 0:00:04]} 11. Ne2 {[%emt 0:00:14]} Qb6 {[%emt 0:14:18]} 12. b4 {[%emt 0:07:49]} Qc7 {[%emt 0:03:12]} 13. Be3 {[%emt 0:08:55][%cal Bc1e3,Be3c5,Bc5d6][%mdl 32]} f6 {[%emt 0:09:25]} 14. f4 {[%emt 0:22:34]} fxe5 {[%emt 0:03:22]} 15. fxe5 {[%emt 0:00:21]} Ne7 {[%emt 0:02:07] Black is weak on the dark squares} 16. O-O {[%emt 0:02:22]} O-O {[%emt 0:15:09]} 17. Bc5 {[%emt 0:03:22]} Be4 {[%emt 0:01:20]} 18. Rxf8+ {[%emt 0:09:26]} Rxf8 {[%emt 0:00:45]} 19. Nd4 {[%emt 0:00:07]} (19. Qa4 {simplifies} Rf7 20. Qxa7 Qxa7 21. Bxa7 Bd3 22. Nd4) 19... Rf7 {[%emt 0:09:17]} 20. Bd6 {[%emt 0:05:31]} (20. Nxe6 Qxe5 21. Bxe7 Qxc3 $17 (21... Rxe7 22. Nd4 $15) (21... Qxe6 22. Bc5 $11)) (20. Qg4 {with more complications.} Ng6 21. Qxe6 Qxe5 22. Rf1) 20... Qb6 {[%emt 0:08:45]} 21. Qa4 {[%emt 0:01:36]} Ng6 {[%emt 0:11:55] Strongly threatening ...Qd8.} 22. Qxc6 {[%emt 0:01:03]} Qxc6 {[%emt 0:00:17]} 23. Nxc6 {[%emt 0:00:03]} Nf4 {[%emt 0:00:07]} 24. Re1 {[%emt 0:04:20] Dodges Ne2+} (24. Nd8 {leads to mate.} Ne2+ 25. Kh1 Rf2 26. Rg1 Bxg2+ (26... Nxc3 27. Nxe6 Rxa2 28. Bc5 $17) (26... Nxg1 $2 27. Kxg1 Rxg2+ 28. Kf1 $19) 27. Rxg2 Rf1+) 24... Bxg2 {[%emt 0:04:15] [#]} 25. Nd8 $1 {[%emt 0:00:08] White is more active.} Rf5 {[%emt 0:00:32] [#] And now ...Bh3 would win.} 26. Nxe6 $1 {[%emt 0:01:26][%mdl 512]} Nxe6 {[%emt 0:01:06]} 27. Kxg2 $16 {[%emt 0:00:06][%mdl 4096] Endgame. KRB-KRN} Rf4 {[%emt 0:00:17]} 28. Rb1 {[%emt 0:07:34]} Rc4 {[%emt 0:00:27]} 29. Rb3 {[%emt 0:00:10]} d4 {[%emt 0:00:34]} 30. cxd4 {[%emt 0:00:30][%cal Bc3d4,Bd4d5][%mdl 32]} Rc2+ {[%emt 0:00:33]} (30... Nxd4 $16 {is a better defense.} 31. Ra3 Nb5) 31. Kg3 $18 {[%emt 0:03:45] Threatens to win with d5.} Rxa2 $2 {[%emt 0:00:30]} (31... Nxd4 {is more resistant.} 32. Ra3 Kf7 33. Rxa7+ Ke6) 32. Rd3 {[%emt 0:05:36] aiming for d5.} g5 {[%emt 0:00:31]} 33. d5 {[%emt 0:02:35]} Nf4 {[%emt 0:00:06]} 34. Rd1 {[%emt 0:00:08]} Rg2+ {[%emt 0:00:56]} (34... Kf7 $142 35. e6+ Nxe6 36. dxe6+ Kxe6) 35. Kf3 {[%emt 0:00:02]} Rxh2 {[%emt 0:00:29]} 36. e6 {[%emt 0:02:30]} Rh4 {[%emt 0:00:44]} 37. Bxf4 {[%emt 0:03:12] White mates.} Rxf4+ {[%emt 0:00:01]} 38. Kg3 {[%emt 0:00:16]} Kf8 {[%emt 0:00:54]} 39. d6 {[%emt 0:00:10] Weighted Error Value: White=0.06 (flawless) /Black=0.52.  Mistake:       	---       	Black=3      Inaccurate:     	White=3     	Black=6      OK:         	White=15    	Black=9      Best:        	White=3     	Black=3      Strong:       	White=1     	---        Brilliant:      	White=1     	---} 1-0